fUST/lending_fUST_20250114
["ID","MTS","AMOUNT","RATE_DAILY","PERIOD"]
[348810375,1736790638386,-906.85,0.00021871,3]
[348810377,1736790638395,-906.85,0.00022145,3]
[348810379,1736790638405,-329289.66384749,0.00023,2]
[348810382,1736790638414,-3734.91,0.00023,14]
[348810384,1736790638423,-1485.72,0.00023,14]
[348810386,1736790638433,-8416.08,0.00023,2]
[348810388,1736790638446,-7438.69753278,0.00023,3]
[348810390,1736790638455,-2500.0,0.00023004,3]
[348810392,1736790638466,-2500.0,0.00023004,3]
[348810394,1736790638478,-2500.0,0.00023013,3]
[348810395,1736790638490,-2500.0,0.00023013,3]
[348810397,1736790638502,-164.0,0.00023014,2]
[348810400,1736790638512,-151.0,0.00023015,7]
[348810402,1736790638521,-10737.23396905,0.0002307,2]
[348810404,1736790638530,-9167.37,0.0002324,2]
[348810406,1736790638539,-1113.97,0.0002324,3]
[348810408,1736790638548,-719.07,0.0002324,3]
[348810410,1736790638557,-610.88,0.0002324,3]
[348810412,1736790638566,-622.61,0.0002324,3]
[348810414,1736790638576,-500.0,0.0002324,3]
[348810416,1736790638586,-656.8,0.0002324,3]
[348810418,1736790638595,-500.0,0.00023241,3]
[348810420,1736790638604,-500.0,0.00023241,3]
[348810422,1736790638615,-500.0,0.00023241,3]
[348810424,1736790638625,-500.0,0.00023241,3]
[348810426,1736790638636,-2053.82,0.00023241,3]
[348810427,1736790638645,-500.0,0.00023241,3]
[348810429,1736790638655,-7385.5,0.00023241,3]
[348810431,1736790638664,-541.97,0.00023241,3]
[348810433,1736790638674,-2172.65,0.00023246,3]
[348810436,1736790638683,-2085.0,0.00023246,3]
[348810438,1736790638697,-196.0,0.00023282,2]
[348810440,1736790638707,-151.0,0.00023289,7]
[348810442,1736790638717,-10737.23396906,0.00023331,2]
[348810444,1736790638726,-153.0,0.00023399,2]
[348810446,1736790638735,-153.0,0.00023399,2]
[348810448,1736790638745,-153.0,0.00023399,2]
[348810450,1736790638754,-153.0,0.00023399,2]
[348810452,1736790638764,-153.0,0.00023399,2]
[348810454,1736790638773,-153.0,0.00023399,2]
[348810456,1736790638782,-153.0,0.00023399,2]
[348810458,1736790638792,-153.0,0.00023399,2]
[348810460,1736790638801,-166.0,0.00023399,2]
[348810462,1736790638811,-153.0,0.00023399,2]
[348810464,1736790638820,-166.0,0.00023399,2]
[348810466,1736790638829,-153.0,0.00023399,2]
[348810468,1736790638839,-166.53,0.00023399,2]
[348810470,1736790638848,-153.0,0.00023399,2]
[348810472,1736790638857,-153.0,0.00023399,2]
[348810474,1736790638867,-153.0,0.00023399,2]
[348810476,1736790638876,-153.0,0.00023399,2]
[348810478,1736790638885,-153.0,0.00023399,2]
[348810480,1736790638895,-153.0,0.00023399,2]
[348810482,1736790638904,-153.0,0.00023399,2]
[348810484,1736790638913,-153.0,0.00023399,2]
[348810486,1736790638923,-153.0,0.00023399,2]
[348810488,1736790638932,-153.0,0.00023399,2]
[348810490,1736790638942,-153.0,0.00023399,2]
[348810492,1736790638951,-153.0,0.00023399,2]
[348810494,1736790638960,-153.0,0.00023399,2]
[348810496,1736790638969,-153.0,0.00023399,2]
[348810498,1736790638979,-153.0,0.00023399,2]
[348810500,1736790638988,-153.0,0.00023399,2]
[348810502,1736790638997,-153.0,0.00023399,2]
[348810504,1736790639006,-153.0,0.00023399,2]
[348810506,1736790639016,-153.0,0.00023399,2]
[348810508,1736790639025,-153.0,0.00023399,2]
[348810510,1736790639034,-153.0,0.00023399,2]
[348810512,1736790639045,-153.0,0.00023399,2]
[348810514,1736790639054,-153.0,0.00023399,2]
[348810516,1736790639063,-153.0,0.00023399,2]
[348810518,1736790639072,-294.62,0.00023399,2]
[348810520,1736790639081,-430.8633131,0.00023403,2]
[348810522,1736790639091,-11758.15099754,0.00023474,2]
[348810524,1736790639100,-3000.0,0.00023511,2]
[348810526,1736790639109,-3000.0,0.00023512,2]
[348810528,1736790639118,-9167.37,0.00023514,2]
[348810530,1736790639128,-1113.97,0.00023514,3]
[348810532,1736790639137,-719.07,0.00023514,3]
[348810534,1736790639146,-610.88,0.00023514,3]
[348810536,1736790639155,-622.61,0.00023514,3]
[348810538,1736790639164,-500.0,0.00023514,3]
[348810540,1736790639174,-656.8,0.00023514,3]
[348810542,1736790639183,-500.0,0.00023515,3]
[348810544,1736790639195,-500.0,0.00023515,3]
[348810546,1736790639204,-500.0,0.00023515,3]
[348810548,1736790639213,-500.0,0.00023515,3]
[348810550,1736790639223,-2053.82,0.00023515,3]
[348810552,1736790639235,-500.0,0.00023515,3]
[348810554,1736790639244,-7385.5,0.00023515,3]
[348810556,1736790639253,-541.97,0.00023515,3]
[348810558,1736790639263,-2172.65,0.0002352,3]
[348810560,1736790639272,-2085.0,0.0002352,3]
[348810562,1736790639282,-74534.96726213,0.0002352,2]
[348810564,1736790639291,-151.0,0.00023562,7]
[348810566,1736790639300,-2000.0,0.000236,2]
[348810568,1736790639310,-300.0,0.000236,10]
[348810570,1736790639319,-150.0,0.000236,2]
[348810572,1736790639328,-902.05,0.000236,2]
[348810574,1736790639337,-150.0,0.000236,2]
[348810576,1736790639346,-188.0,0.000236,2]
[348810578,1736790639355,-188.5,0.000236,2]
[348810580,1736790639364,-160.0,0.00023608,2]
[348810582,1736790639374,-151.0,0.00023608,7]
[348810583,1736790639383,-151.0,0.00023608,7]
[348810586,1736790639393,-151.0,0.00023608,7]
[348810587,1736790639404,-151.0,0.00023608,7]
[348810589,1736790639414,-151.0,0.00023608,7]
[348810591,1736790639423,-151.0,0.00023608,7]
[348810593,1736790639432,-151.0,0.00023608,7]
[348810595,1736790639443,-151.0,0.00023608,7]
[348810597,1736790639452,-151.0,0.00023608,7]
[348810599,1736790639461,-151.0,0.00023608,7]
[348810601,1736790639471,-151.0,0.00023608,7]
[348810603,1736790639480,-151.0,0.00023608,7]
[348810605,1736790639490,-151.0,0.00023608,7]
[348810620,1736790639625,-151.0,0.00023608,7]
[348810622,1736790639635,-151.0,0.00023608,7]
[348810624,1736790639644,-151.0,0.00023608,7]
[348810626,1736790639655,-151.0,0.00023608,7]
[348810628,1736790639665,-151.0,0.00023608,7]
[348810630,1736790639675,-151.0,0.00023608,7]
[348810632,1736790639685,-261.20024,0.00023608,7]
[348810634,1736790639697,-151.0,0.00023608,7]
[348810636,1736790639706,-151.0,0.00023608,7]
[348810638,1736790639717,-151.0,0.00023608,7]
[348810640,1736790639726,-151.0,0.00023608,7]
[348810642,1736790639737,-151.0,0.00023608,7]
[348810644,1736790639747,-151.0,0.00023608,7]
[348810646,1736790639756,-151.0,0.00023608,7]
[348810649,1736790639766,-151.0,0.00023608,7]
[348810651,1736790639776,-151.0,0.00023608,7]
[348810653,1736790639785,-151.0,0.00023608,7]
[348810655,1736790639795,-151.0,0.00023608,7]
[348810657,1736790639804,-151.0,0.00023608,7]
[348810659,1736790639814,-151.0,0.00023608,7]
[348810661,1736790639823,-151.0,0.00023608,7]
[348810663,1736790639833,-212.130492,0.00023608,7]
[348810665,1736790639843,-151.0,0.00023608,7]
[348810667,1736790639852,-151.0,0.00023608,7]
[348810669,1736790639862,-151.0,0.00023608,7]
[348810671,1736790639871,-151.0,0.00023608,7]
[348810673,1736790639880,-151.0,0.00023608,7]
[348810675,1736790639890,-151.0,0.00023608,7]
[348810677,1736790639900,-151.0,0.00023608,7]
[348810680,1736790639910,-151.0,0.00023608,7]
[348810682,1736790639919,-205.54055,0.00023608,7]
[348810683,1736790639929,-151.0,0.00023608,7]
[348810685,1736790639938,-151.0,0.00023608,7]
[348810687,1736790639952,-151.0,0.00023608,7]
[348810689,1736790639962,-151.0,0.00023608,7]
[348810692,1736790639972,-151.0,0.00023608,7]
[348810694,1736790639982,-151.0,0.00023608,7]
[348810695,1736790639991,-151.0,0.00023608,7]
[348810698,1736790640001,-151.0,0.00023608,7]
[348810699,1736790640012,-151.0,0.00023608,7]
[348810701,1736790640021,-151.0,0.00023608,7]
[348810704,1736790640031,-151.0,0.00023608,7]
[348810706,1736790640041,-151.0,0.00023608,7]
[348810707,1736790640049,-151.0,0.00023608,7]
[348810709,1736790640059,-151.0,0.00023608,7]
[348810710,1736790640069,-151.0,0.00023608,7]
[348810711,1736790640078,-191.987056,0.00023608,7]
[348810712,1736790640087,-464.84987,0.00023608,7]
[348810713,1736790640097,-464.84987,0.00023608,7]
[348810714,1736790640106,-464.84987,0.00023608,7]
[348810715,1736790640116,-464.84987,0.00023608,7]
[348810716,1736790640125,-464.84987,0.00023608,7]
[348810717,1736790640135,-464.84987,0.00023608,7]
[348810718,1736790640146,-464.84987,0.00023608,7]
[348810719,1736790640156,-464.84987,0.00023608,7]
[348810720,1736790640165,-464.84987,0.00023608,7]
[348810721,1736790640175,-464.84987,0.00023608,7]
[348810722,1736790640185,-464.84987,0.00023608,7]
[348810723,1736790640196,-464.84987,0.00023608,7]
[348810724,1736790640206,-464.84987,0.00023608,7]
[348810726,1736790640216,-464.84987,0.00023608,7]
[348810728,1736790640225,-464.84987,0.00023608,7]
[348810730,1736790640235,-464.84987,0.00023608,7]
[348810732,1736790640244,-464.84987,0.00023608,7]
[348810734,1736790640253,-464.84987,0.00023608,7]
[348810736,1736790640263,-464.84987,0.00023608,7]
[348810738,1736790640273,-464.84987,0.00023608,7]
[348810740,1736790640282,-335.752034,0.00023608,7]
[348810742,1736790640292,-335.752034,0.00023608,7]
[348810744,1736790640302,-335.752034,0.00023608,7]
[348810746,1736790640311,-335.752034,0.00023608,7]
[348810748,1736790640321,-335.752034,0.00023608,7]
[348810750,1736790640331,-335.752034,0.00023608,7]
[348810752,1736790640341,-335.752034,0.00023608,7]
[348810754,1736790640353,-335.752034,0.00023608,7]
[348810756,1736790640363,-335.752034,0.00023608,7]
[348810758,1736790640372,-335.752034,0.00023608,7]
[348810760,1736790640382,-335.752034,0.00023608,7]
[348810762,1736790640391,-335.752034,0.00023608,7]
[348810764,1736790640400,-335.752034,0.00023608,7]
[348810766,1736790640409,-335.752034,0.00023608,7]
[348810768,1736790640419,-335.752034,0.00023608,7]
[348810770,1736790640429,-335.752034,0.00023608,7]
[348810772,1736790640438,-335.752034,0.00023608,7]
[348810774,1736790640451,-335.752034,0.00023608,7]
[348810776,1736790640460,-335.752034,0.00023608,7]
[348810778,1736790640470,-335.752036,0.00023608,7]
[348810780,1736790640480,-151.0,0.00023608,7]
[348810782,1736790640489,-151.0,0.00023609,7]
[348810784,1736790640499,-151.0,0.00023609,7]
[348810786,1736790640508,-151.0,0.00023609,7]
[348810788,1736790640518,-158.803903,0.00023609,7]
[348810790,1736790640528,-158.803903,0.00023609,7]
[348810792,1736790640537,-158.803903,0.00023609,7]
[348810794,1736790640546,-158.803903,0.00023609,7]
[348810796,1736790640556,-158.803903,0.00023609,7]
[348810798,1736790640565,-158.803903,0.00023609,7]
[348810800,1736790640575,-158.803903,0.00023609,7]
[348810802,1736790640587,-158.803903,0.00023609,7]
[348810804,1736790640596,-158.803903,0.00023609,7]
[348810806,1736790640607,-158.803903,0.00023609,7]
[348810808,1736790640619,-158.803903,0.00023609,7]
[348810810,1736790640628,-158.803903,0.00023609,7]
[348810812,1736790640637,-158.803903,0.00023609,7]
[348810814,1736790640647,-158.803903,0.00023609,7]
[348810816,1736790640657,-158.803903,0.00023609,7]
[348810818,1736790640667,-158.803903,0.00023609,7]
[348810820,1736790640676,-158.803903,0.00023609,7]
[348810822,1736790640687,-158.803903,0.00023609,7]
[348810824,1736790640699,-158.803903,0.00023609,7]
[348810826,1736790640709,-158.803897,0.00023609,7]
[348810828,1736790640718,-216.3454,0.00023609,7]
[348810830,1736790640728,-216.3454,0.00023609,7]
[348810832,1736790640737,-216.3454,0.00023609,7]
[348810834,1736790640746,-216.3454,0.00023609,7]
[348810836,1736790640755,-216.3454,0.00023609,7]
[348810837,1736790640765,-216.3454,0.00023609,7]
[348810839,1736790640774,-216.3454,0.00023609,7]
[348810841,1736790640783,-216.3454,0.00023609,7]
[348810843,1736790640792,-216.3454,0.00023609,7]
[348810845,1736790640803,-216.3454,0.00023609,7]
[348810847,1736790640812,-216.3454,0.00023609,7]
[348810849,1736790640822,-216.3454,0.00023609,7]
[348810852,1736790640832,-216.3454,0.00023609,7]
[348810853,1736790640841,-216.3454,0.00023609,7]
[348810856,1736790640852,-216.3454,0.00023609,7]
[348810858,1736790640861,-216.3454,0.00023609,7]
[348810859,1736790640870,-216.3454,0.00023609,7]
[348810861,1736790640879,-216.3454,0.00023609,7]
[348810864,1736790640890,-216.3454,0.00023609,7]
[348810865,1736790640899,-216.345398,0.00023609,7]
[348810867,1736790640908,-151.0,0.00023609,7]
[348810869,1736790640917,-151.0,0.00023609,7]
[348810871,1736790640927,-151.0,0.00023609,7]
[348810873,1736790640936,-151.0,0.00023609,7]
[348810875,1736790640947,-575.025334,0.0002361,7]
[348810877,1736790640956,-575.025334,0.0002361,7]
[348810879,1736790640966,-575.025334,0.0002361,7]
[348810881,1736790640975,-575.025334,0.0002361,7]
[348810883,1736790640984,-575.025334,0.0002361,7]
[348810885,1736790640993,-575.025334,0.0002361,7]
[348810887,1736790641004,-575.025334,0.0002361,7]
[348810889,1736790641014,-575.025334,0.0002361,7]
[348810891,1736790641025,-151.0,0.0002361,7]
[348810894,1736790641034,-575.025334,0.0002361,7]
[348810896,1736790641045,-575.025334,0.0002361,7]
[348810898,1736790641055,-575.025334,0.0002361,7]
[348810900,1736790641067,-575.025334,0.0002361,7]
[348810902,1736790641076,-575.025334,0.0002361,7]
[348810904,1736790641085,-575.025334,0.0002361,7]
[348810906,1736790641094,-575.025334,0.0002361,7]
[348810908,1736790641104,-575.025334,0.0002361,7]
[348810910,1736790641114,-575.025334,0.0002361,7]
[348810912,1736790641123,-575.025334,0.0002361,7]
[348810913,1736790641132,-575.025334,0.0002361,7]
[348810915,1736790641143,-575.02533,0.0002361,7]
[348810917,1736790641152,-34517.12081415,0.0002361,5]
[348810919,1736790641162,-21104.46243022,0.0002361,5]
[348810922,1736790641172,-6401651.6148299,0.0002361,10]
[348810923,1736790641183,-11002.75441515,0.0002361,10]
[348811437,1736790646186,-500.0,0.00020226,3]
[348811439,1736790646197,-906.85,0.00022419,3]
[348811441,1736790646207,-191.56549481,0.0002254,2]
[348815994,1736790863894,489.11520223,0.00021917,30]
[348815995,1736791333259,157.51047,0.00013973,2]
[348815996,1736791631151,-1144.05193129,0.0001847,2]
[348815997,1736791633120,-482.09687375,0.0001847,2]
[348815998,1736791641103,-566.90413778,0.0001847,2]
[348815999,1736791652096,-2806.94705718,0.0001847,2]
[348816000,1736791652118,-389.17078152,0.00019,2]
[348816001,1736791652140,-239.88174,0.00019228,2]
[348816002,1736791652160,-1364.4100908,0.00019636,2]
[348816003,1736791652180,-552.08551639,0.00019817,2]
[348816004,1736791652205,-300.0,0.00019999,2]
[348816005,1736791652230,-3375.0,0.0002,2]
[348816006,1736791652251,-165.821,0.00020225,2]
[348816007,1736791652272,-500.0,0.00020226,3]
[348816008,1736791652294,-127.16886059,0.00020226,3]
[348816051,1736791832610,-1053.25905343,0.00020024,2]
[348816054,1736791832631,-3946.74094657,0.00020024,2]
[348816056,1736791832641,-500.0,0.00020225,7]
[348816058,1736791832651,-500.0,0.00020226,3]
[348816060,1736791832660,-53.25905343,0.00020227,3]
[348816167,1736791838283,-446.74094657,0.00020227,3]
[348816169,1736791838292,-500.0,0.00020227,3]
[348816171,1736791838302,-500.0,0.00020227,3]
[348816173,1736791838311,-433.25905293,0.00020227,3]
[348816176,1736791838323,-66.74094707,0.00020227,3]
[348816178,1736791838333,-205.36,0.000205,3]
[348816180,1736791838343,-174.342135,0.00020572,2]
[348816182,1736791838352,-500.0,0.0002091,9]
[348816184,1736791838363,-499.82941853,0.00021,2]
[348816186,1736791838375,-758.4281794,0.00021,2]
[348816188,1736791838387,-1741.74240207,0.00021,2]
[348816190,1736791838397,-3000.0,0.0002101,2]
[348816192,1736791838407,-3000.0,0.0002102,2]
[348816194,1736791838416,-3000.0,0.0002103,2]
[348816196,1736791838426,-3000.0,0.0002104,2]
[348816199,1736791838436,-3000.0,0.0002105,2]
[348816201,1736791838445,-3000.0,0.0002106,2]
[348816203,1736791838455,-3000.0,0.0002107,2]
[348816205,1736791838464,-3000.0,0.0002108,2]
[348816207,1736791838474,-3000.0,0.0002109,2]
[348816209,1736791838483,-3000.0,0.000211,2]
[348816211,1736791838494,-3000.0,0.0002111,2]
[348816213,1736791838503,-3000.0,0.0002112,2]
[348816215,1736791838513,-3000.0,0.0002113,2]
[348816217,1736791838523,-3000.0,0.0002114,2]
[348816219,1736791838533,-3000.0,0.0002115,2]
[348816221,1736791838543,-3000.0,0.0002116,2]
[348816223,1736791838553,-198.37153643,0.00021169,2]
[348816225,1736791838562,-500.0,0.00021169,2]
[348816227,1736791838572,-500.0,0.00021169,2]
[348816229,1736791838582,-386.11364352,0.00021169,2]
[348816231,1736791838591,-500.0,0.00021169,2]
[348816233,1736791838601,-500.0,0.00021169,2]
[348816235,1736791838613,-500.0,0.00021169,2]
[348816237,1736791838622,-358.15046059,0.00021169,2]
[348816239,1736791838633,-272.77326534,0.00021169,2]
[348816241,1736791838643,-3000.0,0.0002117,2]
[348816244,1736791838653,-3000.0,0.0002118,2]
[348816246,1736791838663,-3000.0,0.0002119,2]
[348816248,1736791838672,-3000.0,0.000212,2]
[348816250,1736791838682,-2138.48097695,0.0002121,2]
[348816253,1736791838699,-4439.66018184,0.00020366,2]
[348816255,1736791838711,-560.33981816,0.00020366,2]
[348816257,1736791838721,-3152.52676405,0.0002121,2]
[348816259,1736791838732,-500.0,0.00021595,11]
[348816261,1736791838741,-3375.0,0.000216,4]
[348816263,1736791838751,-150.0,0.00022,2]
[348816265,1736791838760,-163.0,0.00022,2]
[348816267,1736791838770,-343.39982763,0.0002228,13]
[348816269,1736791838780,-581.664,0.0002244,2]
[348816271,1736791838789,-851.34193587,0.00022592,2]
[348816273,1736791838798,-706.6575366,0.00022658,2]
[348816275,1736791838808,-157.51047,0.00022759,2]
[348816277,1736791838817,-153.0,0.00022795,2]
[348816279,1736791838828,-2500.0,0.00022987,3]
[348816281,1736791838837,-2500.0,0.00022995,3]
[348816283,1736791838847,-506.5301717,0.00022999,2]
[348816285,1736791838859,-7438.69753278,0.00023,3]
[348816287,1736791838868,-7438.69753278,0.00023,2]
[348816289,1736791838878,-7438.69753278,0.00023,2]
[348816291,1736791838888,-77061.36024317,0.00023,2]
[348816293,1736791838900,-733.27660066,0.00023,2]
[348816295,1736791838912,-23656.46046424,0.00023,2]
[348816297,1736791838924,-469.41,0.00023,2]
[348816300,1736791838936,-33955.53547661,0.00023,2]
[348816302,1736791838946,-7438.69753278,0.00023,2]
[348816304,1736791838956,-2500.0,0.00023004,3]
[348816306,1736791838966,-2500.0,0.00023013,3]
[348816308,1736791838975,-163.0,0.00023014,2]
[348816310,1736791838986,-155.549415,0.00023068,2]
[348816312,1736791838999,-10737.23396905,0.00023082,2]
[348816314,1736791839009,-151.0,0.00023097,7]
[348816316,1736791839018,-19801.15441855,0.00023187,3]
[348816318,1736791839028,-153.0,0.00023252,2]
[348816320,1736791839038,-153.0,0.00023252,2]
[348816322,1736791839048,-153.0,0.00023252,2]
[348816323,1736791839058,-153.0,0.00023252,2]
[348816324,1736791839068,-153.0,0.00023252,2]
[348816326,1736791839078,-153.0,0.00023252,2]
[348816328,1736791839088,-153.0,0.00023252,2]
[348816330,1736791839097,-153.0,0.00023252,2]
[348816332,1736791839106,-153.0,0.00023252,2]
[348816334,1736791839117,-153.0,0.00023252,2]
[348816336,1736791839126,-192.42,0.00023252,2]
[348816337,1736791839137,-500.0,0.00023273,2]
[348816339,1736791839147,-500.0,0.00023287,3]
[348816341,1736791839156,-500.0,0.00023287,3]
[348816343,1736791839166,-500.0,0.00023287,3]
[348816345,1736791839175,-500.0,0.00023287,3]
[348816347,1736791839184,-500.0,0.00023287,3]
[348816349,1736791839194,-238.20747252,0.00023287,3]
[348816351,1736791839204,-500.0,0.00023287,3]
[348816353,1736791839216,-1026.91,0.00023287,3]
[348816355,1736791839225,-1026.91,0.00023287,3]
[348816357,1736791839235,-1026.91,0.00023287,3]
[348816359,1736791839245,-1026.91,0.00023287,3]
[348816361,1736791839255,-1026.91,0.00023287,3]
[348816363,1736791839264,-1026.91,0.00023287,3]
[348816365,1736791839274,-1026.91,0.00023287,3]
[348816367,1736791839283,-1026.91,0.00023287,3]
[348816368,1736791839293,-1026.91,0.00023287,3]
[348816369,1736791839303,-1026.91,0.00023287,3]
[348816370,1736791839312,-1026.91,0.00023287,3]
[348816371,1736791839322,-1026.91,0.00023287,3]
[348816372,1736791839331,-1026.91,0.00023287,3]
[348816373,1736791839341,-1026.91,0.00023287,3]
[348816374,1736791839350,-1026.91,0.00023287,3]
[348816375,1736791839362,-1026.91,0.00023287,3]
[348816376,1736791839371,-1026.91,0.00023287,3]
[348816377,1736791839381,-500.0,0.00023287,3]
[348816378,1736791839392,-1026.91,0.00023287,3]
[348816379,1736791839402,-1026.91,0.00023287,3]
[348816380,1736791839411,-1026.91,0.00023287,3]
[348816381,1736791839421,-1026.91,0.00023287,3]
[348816382,1736791839431,-500.0,0.00023287,3]
[348816383,1736791839440,-1026.91,0.00023287,3]
[348816384,1736791839451,-1026.91,0.00023287,3]
[348816385,1736791839461,-1027.10820587,0.00023287,3]
[348816386,1736791839471,-500.0,0.00023287,3]
[348816387,1736791839480,-500.0,0.00023287,3]
[348816388,1736791839490,-511.53469593,0.00023287,3]
[348816389,1736791839500,-500.0,0.00023287,3]
[348816390,1736791839510,-407.3583208,0.00023287,3]
[348816391,1736791839519,-500.0,0.00023287,3]
[348816392,1736791839528,-566.78,0.00023287,3]
[348816393,1736791839538,-566.78,0.00023287,3]
[348816394,1736791839548,-566.78,0.00023287,3]
[348816395,1736791839558,-566.78,0.00023287,3]
[348816396,1736791839568,-566.78,0.00023287,3]
[348816397,1736791839578,-566.78,0.00023287,3]
[348816398,1736791839587,-566.78,0.00023287,3]
[348816399,1736791839597,-566.78,0.00023287,3]
[348816400,1736791839607,-566.78,0.00023287,3]
[348816401,1736791839616,-566.78,0.00023287,3]
[348816402,1736791839625,-566.78,0.00023287,3]
[348816403,1736791839635,-566.78,0.00023287,3]
[348816404,1736791839644,-566.78,0.00023287,3]
[348816405,1736791839654,-566.78,0.00023287,3]
[348816406,1736791839664,-566.78,0.00023287,3]
[348816407,1736791839674,-566.78,0.00023287,3]
[348816408,1736791839683,-566.78,0.00023287,3]
[348816409,1736791839693,-566.78,0.00023287,3]
[348816410,1736791839702,-566.78,0.00023287,3]
[348816411,1736791839712,-566.78,0.00023287,3]
[348816412,1736791839722,-566.78,0.00023287,3]
[348816413,1736791839731,-566.78,0.00023287,3]
[348816414,1736791839740,-566.78,0.00023287,3]
[348816415,1736791839749,-566.9182259,0.00023287,3]
[348816416,1736791839758,-500.0,0.00023287,3]
[348816417,1736791839767,-500.0,0.00023287,3]
[348816418,1736791839777,-306.23600054,0.00023287,3]
[348816419,1736791839786,-575.21386505,0.00023287,3]
[348816421,1736791839796,-500.0,0.00023287,3]
[348816422,1736791839806,-500.0,0.00023287,3]
[348816423,1736791839815,-532.35,0.00023287,3]
[348816424,1736791839824,-500.0,0.00023287,3]
[348816425,1736791839834,-500.0,0.00023287,3]
[348816426,1736791839843,-500.0,0.00023287,3]
[348816427,1736791839853,-500.0,0.00023287,3]
[348816428,1736791839866,-500.0,0.00023287,3]
[348816429,1736791839875,-500.0,0.00023287,3]
[348816430,1736791839885,-500.0,0.00023287,3]
[348816431,1736791839895,-500.0,0.00023287,3]
[348816432,1736791839904,-500.0,0.00023287,3]
[348816433,1736791839914,-236.75,0.00023287,3]
[348816434,1736791839924,-500.0,0.00023287,3]
[348816435,1736791839934,-500.0,0.00023287,3]
[348816436,1736791839944,-500.0,0.00023287,3]
[348816437,1736791839954,-500.0,0.00023287,3]
[348816438,1736791839964,-500.0,0.00023287,3]
[348816440,1736791839973,-531.03904416,0.00023287,3]
[348816442,1736791839984,-500.0,0.00023287,3]
[348816443,1736791839996,-500.0,0.00023287,3]
[348816444,1736791840009,-500.0,0.00023287,3]
[348816445,1736791840021,-500.0,0.00023287,3]
[348816446,1736791840034,-500.0,0.00023287,3]
[348816447,1736791840044,-500.0,0.00023287,3]
[348816460,1736791840054,-507.71,0.00023287,3]
[348816462,1736791840210,-318.83250209,0.00023287,3]
[348816463,1736791840220,-500.0,0.00023287,3]
[348816465,1736791840230,-505.98419565,0.00023287,3]
[348816467,1736791840240,-500.0,0.00023287,3]
[348816469,1736791840250,-500.0,0.00023287,3]
[348816471,1736791840260,-500.0,0.00023287,3]
[348816473,1736791840269,-513.22,0.00023287,3]
[348816475,1736791840279,-500.0,0.00023287,3]
[348816478,1736791840289,-500.0,0.00023287,3]
[348816480,1736791840298,-524.87817578,0.00023287,3]
[348816481,1736791840307,-500.0,0.00023287,3]
[348816483,1736791840317,-500.0,0.00023287,3]
[348816486,1736791840326,-500.0,0.00023287,3]
[348816488,1736791840336,-500.0,0.00023287,3]
[348816490,1736791840345,-500.0,0.00023287,3]
[348816492,1736791840354,-500.0,0.00023287,3]
[348816494,1736791840364,-500.0,0.00023287,3]
[348816496,1736791840374,-628.87,0.00023287,3]
[348816498,1736791840384,-500.0,0.00023287,3]
[348816500,1736791840393,-500.0,0.00023287,3]
[348816502,1736791840402,-500.0,0.00023287,3]
[348816504,1736791840412,-500.0,0.00023287,3]
[348816506,1736791840421,-500.0,0.00023287,3]